bitfinex/quotes_ETHUSD_20251124
["timestamp","ask_amount","ask_price","bid_price","bid_amount"]
[1764009012864,3.40206851,2939.4,2938.8,0.34028652]
[1764009013188,0.217,2939.3,2938.8,0.34028652]
[1764009013552,0.217,2939.2,2938.8,0.34028652]
[1764009013749,0.217,2939.2,2938.7,3.40286521]
[1764009014000,0.217,2939.2,2938.5,6.80619362]
[1764009014164,1.02258027,2939.3,2939.1,0.041]
[1764009014369,0.217,2939.2,2939.1,0.041]
[1764009014766,1.02258027,2939.3,2939.1,0.041]
[1764009014967,3.59881816,2940.0,2939.2,0.041]
[1764009015199,0.72559411,2939.8,2939.2,0.041]
[1764009015399,0.217,2939.7,2938.6,0.041]
[1764009015700,4.24037957,2940.0,2938.7,0.041]
[1764009015899,0.217,2939.9,2939.6,3.4428229]
[1764009016101,3.5985649,2940.2,2939.6,0.041]
[1764009016408,1.38946097,2940.6,2939.6,7.18892621]
[1764009016704,1.38946097,2940.6,2939.6,7.22992621]
[1764009016705,0.72836969,2940.5,2939.6,7.22992621]
[1764009016892,0.217,2940.5,2939.6,3.82810284]
[1764009017094,0.94533811,2940.5,2939.6,7.22992621]
[1764009017272,0.6892,2940.5,2939.6,0.38530469]
[1764009017605,0.96605911,2940.4,2939.6,3.48382118]
[1764009017910,0.217,2940.3,2939.6,0.041]
[1764009018081,3.61801509,2940.3,2939.6,6.8446386]
[1764009018284,3.61801509,2940.3,2939.6,3.44281523]
[1764009019105,0.6973,2939.7,2938.9,3.40263363]
[1764009019438,0.6973,2939.7,2938.7,0.041]
[1764009019439,0.217,2939.6,2939.0,3.86]
[1764009019578,0.6892,2939.6,2938.7,3.86]
[1764009019782,0.31627061,2939.5,2938.8,0.7262978]
[1764009020022,0.217,2939.4,2938.8,4.1700005]
[1764009020220,0.217,2939.4,2938.8,0.7672978]
[1764009020389,3.71819281,2939.6,2938.8,7.53177534]
[1764009020717,0.53328534,2939.5,2938.8,7.57277534]
[1764009020919,0.53328534,2939.5,2938.8,4.12902592]
[1764009021122,0.53328534,2939.5,2938.7,7.26278494]
[1764009021324,0.53328534,2939.5,2938.7,10.66565015]
[1764009021538,0.53328534,2939.5,2938.7,7.26278494]
[1764009022026,3.40205484,2939.4,2938.7,7.26278494]
[1764009022237,3.40205484,2939.4,2938.7,7.26283305]
[1764009022439,4.26281032,2939.4,2938.7,7.26284427]
[1764009022820,3.61894249,2939.5,2938.7,10.66570948]
[1764009023143,3.40194249,2939.5,2938.7,10.66570948]
[1764009023497,0.1974,2939.7,2938.8,0.03402749]
[1764009023697,0.1911,2939.9,2938.8,0.041]
[1764009023923,0.31627019,2939.8,2938.8,0.76659411]
[1764009024120,0.316247,2940.0,2939.0,0.72559411]
[1764009024292,0.31636461,2940.0,2939.0,0.72559411]
[1764009024493,0.31636461,2940.3,2939.1,0.041]
[1764009024796,0.53436461,2940.2,2939.1,3.901]
[1764009024995,0.31636461,2940.1,2939.2,0.46265941]
[1764009025210,0.31636077,2940.1,2939.2,0.46265941]
[1764009025423,0.31653362,2940.0,2939.2,0.50365941]
[1764009025741,0.218,2940.3,2939.3,0.041]
[1764009026125,0.218,2940.3,2939.4,6.80410968]
[1764009026292,0.218,2940.3,2939.5,1.02471816]
[1764009026497,0.218,2940.3,2939.5,1.06571816]
[1764009027296,3.40083414,2940.5,2939.5,1.06571816]
[1764009027516,0.53383304,2940.4,2939.5,1.06571816]
[1764009027728,0.31683304,2940.3,2939.5,1.06571816]
[1764009028030,3.61790028,2940.4,2939.7,6.8034153]
[1764009028208,0.31683299,2940.3,2939.7,10.6634153]
[1764009028530,4.07140799,2940.4,2939.7,7.26170765]
[1764009028734,0.77046742,2940.3,2939.7,3.86]
[1764009028930,0.77046742,2940.3,2939.2,1.18825352]
[1764009028931,0.6786,2939.8,2939.2,3.40217585]
[1764009029148,0.6786,2939.8,2939.1,0.72559411]
[1764009029149,0.217,2939.7,2939.1,7.53039639]
[1764009029351,0.217,2939.7,2939.1,4.1279943]
[1764009029538,0.217,2939.7,2938.9,3.86]
[1764009029848,0.1911,2939.9,2939.0,4.5081]
[1764009030015,0.217,2939.8,2939.2,3.40228633]
[1764009030211,0.217,2939.8,2939.3,0.72559411]
[1764009030738,0.1911,2939.9,2939.3,0.72559411]
[1764009031054,0.217,2939.8,2939.3,1.48271079]
[1764009031254,0.217,2939.8,2938.5,0.001]
[1764009031255,0.405504,2939.3,2938.5,0.001]
[1764009031439,1.26592307,2939.2,2938.5,0.001]
[1764009031756,1.04892307,2939.1,2938.5,0.001]
[1764009032050,0.4875,2938.6,2938.5,0.001]
[1764009032255,4.4250958,2938.6,2938.5,0.001]
[1764009032547,4.8785958,2938.6,2938.5,0.001]
[1764009032784,0.4535,2938.5,2938.1,0.09794679]
[1764009033321,0.4875,2938.2,2938.1,0.09794679]
[1764009033524,1.47565474,2938.2,2938.1,0.09794679]
[1764009033825,2.20773585,2938.2,2938.1,0.09794679]
[1764009034027,5.61118013,2938.2,2938.1,0.09794679]
[1764009034234,6.51263112,2938.2,2938.1,0.09794679]
[1764009034958,0.31765474,2938.2,2938.1,0.09794679]
[1764009035258,0.217,2938.4,2938.1,0.09794679]
[1764009035479,3.40252734,2939.0,2938.1,3.54245772]
[1764009035680,1.26624511,2938.9,2938.3,0.041]
[1764009035973,1.26624511,2938.9,2938.1,3.50145772]
[1764009035974,0.53453029,2938.8,2938.1,0.09794679]
[1764009036276,3.40298101,2938.6,2938.1,0.09794679]
[1764009036424,0.31753029,2938.5,2938.1,0.09794679]
[1764009036640,3.40286781,2938.7,2938.1,0.09794679]
[1764009036641,0.218,2938.4,2938.1,0.09794679]
[1764009037398,0.218,2938.4,2937.8,0.001]
[1764009037399,0.4875,2938.1,2937.8,0.001]
[1764009037684,0.73178651,2938.5,2937.6,0.1409]
[1764009037854,0.219,2938.4,2937.6,0.1409]
[1764009038056,0.31755413,2938.6,2937.6,0.1409]
[1764009038370,0.53647946,2938.5,2937.7,3.40402355]
[1764009038684,4.07563441,2938.5,2937.7,0.72559411]
[1764009038850,0.219,2938.4,2937.5,0.001]
[1764009039054,0.31748773,2938.3,2937.5,0.001]
[1764009039294,0.31748773,2938.2,2937.5,0.001]
[1764009039501,0.31748773,2938.1,2937.5,0.001]
[1764009039644,0.31748773,2938.0,2937.5,0.001]
[1764009039847,0.219,2938.1,2937.5,0.001]
[1764009039848,0.31748773,2937.9,2937.5,0.001]
[1764009040205,0.31739778,2937.8,2937.5,0.001]
[1764009040339,3.40394038,2937.8,2937.5,0.001]
[1764009040545,0.219,2937.7,2937.5,0.001]
[1764009041087,0.7065,2937.6,2937.5,0.001]
[1764009041398,0.405504,2937.3,2936.0,0.1419]
[1764009041693,0.405504,2937.1,2936.0,0.1419]
[1764009041864,0.31725795,2937.0,2935.9,0.1419]
[1764009042065,0.9833442,2937.0,2935.9,0.2838]
[1764009042294,6.81013346,2936.8,2935.9,0.1419]
[1764009042440,1.39809411,2936.7,2935.9,0.1419]
[1764009042792,0.4875,2936.0,2934.4,0.1419]
[1764009042937,10.21520019,2936.8,2934.4,0.1419]
[1764009042938,1.10438249,2936.9,2934.8,0.05]
[1764009043140,0.31666697,2936.8,2934.9,0.3629]
[1764009043341,0.221,2937.7,2935.8,1.13109811]
[1764009043570,0.4535,2937.6,2936.7,0.1419]
[1764009043792,0.4535,2937.6,2935.9,0.3629]
[1764009043985,0.4535,2937.6,2936.0,0.1419]
[1764009044355,6.80851062,2937.5,2936.1,6.81175708]
[1764009044758,0.4535,2937.4,2936.1,6.81175708]
[1764009044947,1.17970106,2937.4,2936.2,0.69536571]
[1764009045342,0.405504,2937.2,2935.8,0.1419]
[1764009045591,0.221,2937.1,2935.8,0.1419]
[1764009045790,0.6745,2937.1,2935.8,0.1419]
[1764009046087,0.4535,2937.1,2935.8,0.1419]
[1764009046289,1.90529517,2937.4,2935.9,6.81222112]
[1764009046471,0.221,2937.3,2936.0,0.83731211]
[1764009046790,0.221,2937.2,2936.0,0.83731211]
[1764009046943,0.221,2937.2,2936.1,0.1419]
[1764009047148,0.94659411,2937.2,2936.1,0.1419]
[1764009047373,0.72559411,2937.2,2936.1,0.1419]
[1764009047575,0.72559411,2937.2,2936.0,0.69541211]
[1764009047576,0.405504,2937.0,2936.0,0.69541211]
[1764009047779,0.4865,2937.1,2935.8,3.40621964]
[1764009047988,0.4865,2937.1,2935.9,0.1419]
[1764009048305,0.221,2937.0,2936.0,3.40599455]
[1764009048600,0.94659411,2937.0,2935.5,6.95504936]
[1764009048802,0.4865,2936.9,2935.6,0.71760494]
[1764009048964,0.4865,2936.9,2935.3,3.40670305]
[1764009049174,0.4865,2936.9,2934.7,3.40744975]
[1764009049175,0.405504,2936.4,2933.3,0.17793292]
[1764009049369,7.8766994,2934.5,2932.4,3.41017596]
[1764009049554,7.8766994,2934.5,2932.5,0.35241973]
[1764009049555,1.02792994,2934.4,2932.5,0.35241973]
[1764009049756,0.1988,2935.0,2932.7,2.687776]
[1764009049995,1.21727668,2935.8,2932.6,0.1]
[1764009049996,0.91328249,2936.2,2935.9,0.0119]
[1764009050215,0.487,2936.6,2935.4,0.222]
[1764009050350,0.71,2937.0,2935.5,6.81314936]
[1764009050555,0.71,2937.0,2935.6,0.628504]
[1764009050756,0.72559411,2936.9,2935.6,0.628504]
[1764009050951,0.487,2937.0,2935.6,0.223]
[1764009051193,0.72559411,2936.9,2935.7,1.0442724]
[1764009051696,3.40448711,2937.3,2935.8,0.0119]
[1764009051990,0.223,2937.1,2935.8,0.0119]
[1764009052164,0.223,2937.2,2935.8,0.0119]
[1764009052367,4.10797678,2937.1,2935.8,3.41812271]
[1764009052790,4.10797678,2937.1,2935.8,6.81244929]
[1764009053092,4.10795377,2937.1,2935.9,0.0119]
[1764009053589,0.70319742,2937.1,2935.9,0.417404]
[1764009053796,0.223,2937.3,2935.9,1.14299811]
[1764009053991,0.223,2937.3,2936.0,0.0119]
[1764009054375,0.223,2937.3,2936.1,6.81175708]
[1764009054559,0.60400033,2937.3,2936.2,1.02295726]
[1764009054756,0.60400033,2937.3,2936.2,1.03485726]
[1764009054995,3.40392838,2937.8,2936.3,0.0119]
[1764009055292,0.002,2937.4,2936.3,0.0119]
[1764009055502,0.002,2937.4,2936.2,1.97155137]
[1764009055503,0.002,2937.4,2936.2,1.03485726]
[1764009055668,0.002,2937.4,2936.1,0.72559411]
[1764009055875,0.002,2937.4,2936.3,0.0119]
[1764009056503,0.002,2937.4,2936.4,3.40553058]
[1764009056676,0.487,2937.3,2935.3,0.0119]
[1764009056878,0.487,2937.3,2934.8,6.81477442]
[1764009056879,0.72125895,2937.2,2935.4,0.0119]
[1764009057094,1.02577357,2937.1,2935.4,0.2349]
[1764009057296,1.02577357,2937.1,2935.5,0.0119]
[1764009057297,0.3160169,2937.0,2935.5,0.0119]
[1764009057476,0.1988,2936.9,2935.5,0.0119]
[1764009058005,0.6858,2936.9,2935.5,0.0119]
[1764009058420,10.21554804,2936.7,2935.1,3.40703894]
[1764009058716,10.21554804,2936.7,2935.2,0.34189389]
[1764009058717,2.18436162,2936.6,2935.2,0.34189389]
[1764009058918,2.18436162,2936.6,2935.2,0.35379389]
[1764009058919,0.53932937,2936.5,2935.2,0.35379389]
[1764009059128,1.02632937,2936.5,2935.2,0.35379389]
[1764009059401,0.71,2936.5,2935.2,0.35379389]
[1764009059595,0.25780322,2936.4,2935.3,0.71678718]
[1764009060169,0.25780322,2936.4,2934.6,0.0119]
[1764009060170,0.892504,2936.3,2934.6,0.0119]
[1764009060374,3.40587854,2936.1,2934.9,0.72559411]
[1764009060678,0.25780322,2936.4,2935.0,0.405504]
[1764009060871,0.31700483,2936.5,2935.2,0.405504]
[1764009061072,0.90756083,2937.5,2935.2,1.13109811]
[1764009061270,1.21727668,2937.7,2935.3,0.88480975]
[1764009061271,10.75346796,2937.3,2935.3,0.88480975]
[1764009061473,0.90756083,2937.1,2935.4,0.0119]
[1764009061669,1.04727385,2937.0,2935.4,0.0119]
[1764009061907,1.04727385,2936.9,2935.4,0.0119]
[1764009062111,0.53992235,2936.8,2935.4,0.0119]
[1764009062284,0.31692235,2936.7,2935.0,0.1]
[1764009062489,3.40460302,2937.2,2935.2,0.82559411]
[1764009062709,1.75803216,2937.1,2935.3,0.223]
[1764009062950,1.75803216,2937.1,2935.1,3.40703894]
[1764009062951,3.8783313,2937.0,2935.1,3.40703894]
[1764009063248,0.405504,2936.8,2935.1,7.03707788]
[1764009063459,0.31724582,2936.7,2935.1,7.03707788]
[1764009063615,0.54024582,2936.6,2935.2,1.04441798]
[1764009063817,0.31724582,2936.5,2935.2,1.77001209]
[1764009064019,0.4218,2936.9,2935.3,0.1]
[1764009064228,1.19718412,2937.0,2935.4,0.405504]
[1764009064428,3.89160302,2937.2,2935.6,1.13109811]
[1764009064647,0.54033721,2937.1,2935.7,0.223]
[1764009064864,0.223,2937.1,2935.8,0.405504]
[1764009065034,0.31732418,2937.2,2935.8,0.405504]
[1764009065240,0.31732418,2937.3,2936.0,0.405504]
[1764009065558,0.3174798,2937.2,2936.0,0.405504]
[1764009065762,3.62938179,2937.4,2935.8,0.505504]
[1764009065925,0.31747948,2937.3,2935.8,0.405504]
[1764009066271,0.31747948,2937.2,2935.8,0.405504]
[1764009066477,0.002,2937.4,2936.2,1.13109811]
[1764009066662,0.002,2937.4,2936.5,0.405504]
[1764009066863,0.002,2937.4,2936.6,0.223]
[1764009067173,0.002,2937.4,2936.0,17.02997275]
[1764009067174,0.676,2936.6,2935.3,3.40680679]
[1764009067339,0.73233044,2937.2,2935.4,0.44512248]
[1764009067544,0.73233044,2937.2,2935.6,0.405504]
[1764009067545,0.223,2937.2,2935.6,0.405504]
[1764009067873,0.90756083,2936.8,2935.4,0.44512248]
[1764009068060,1.0502868,2936.7,2935.5,0.38519293]
[1764009068264,1.10636083,2936.0,2934.3,0.224]
[1764009068440,1.13156083,2936.6,2934.6,0.72559411]
[1764009068641,7.3820994,2936.0,2934.5,0.001]
[1764009068939,2.47515849,2935.9,2934.6,0.225]
[1764009069158,2.47515849,2935.9,2934.5,0.001]
[1764009069159,0.405504,2935.7,2934.5,0.001]
[1764009069359,1.05114855,2935.6,2934.5,3.40873555]
[1764009069577,0.31817799,2935.5,2934.5,6.8164711]
[1764009069765,0.487,2935.7,2934.6,0.68164711]
[1764009069971,0.31806293,2935.6,2934.7,0.225]
[1764009070255,0.1988,2935.9,2934.8,0.225]
[1764009070256,0.31806293,2935.5,2934.8,0.225]
[1764009070460,0.6858,2935.9,2934.8,0.225]
[1764009070461,0.6858,2935.9,2934.9,6.81454222]
[1764009070672,0.31799637,2935.8,2935.0,0.70395422]
[1764009070880,0.31799637,2935.7,2935.0,0.70395422]
[1764009071086,1.39456083,2936.3,2935.4,0.003]
[1764009071087,1.05067423,2936.2,2935.4,0.003]
[1764009071286,0.31797379,2936.1,2935.5,0.225]
[1764009071468,4.31289454,2936.6,2935.5,0.225]
[1764009071682,1.50453965,2936.5,2935.5,0.225]
[1764009071873,0.31794388,2936.4,2935.5,0.225]
[1764009072192,3.40520626,2936.7,2935.6,0.225]
[1764009072378,1.05063295,2936.6,2935.6,0.225]
[1764009072691,0.31790967,2936.5,2935.7,3.4063426]
[1764009072893,0.31790967,2936.4,2935.7,3.76947686]
[1764009073080,0.487,2936.7,2935.7,7.17581946]
[1764009073413,0.31790547,2936.6,2935.7,3.76947686]
[1764009073698,0.31790547,2936.5,2935.8,0.225]
[1764009073867,0.31790547,2936.4,2935.8,0.225]
[1764009074223,3.89225751,2936.7,2935.8,0.225]
[1764009074376,0.31799082,2936.6,2935.8,0.225]
[1764009074712,0.31799082,2936.5,2935.9,6.81222112]
[1764009075014,0.73283951,2936.7,2935.9,6.81222112]
[1764009075220,0.31800095,2936.6,2936.0,0.225]
[1764009075378,0.31800095,2936.5,2936.0,0.225]
[1764009075578,4.09078493,2936.9,2936.0,0.92872211]
[1764009075888,1.05090338,2936.8,2936.0,0.225]
[1764009076082,0.31802296,2936.7,2936.0,0.225]
[1764009076317,0.1988,2936.9,2936.0,0.225]
[1764009076475,0.31800639,2936.8,2936.1,6.81175708]
[1764009076789,0.1988,2936.9,2936.2,0.70367571]
[1764009076990,0.31799882,2936.8,2936.2,0.70367571]
[1764009077297,0.1988,2936.9,2936.2,0.70367571]
[1764009077504,0.3180037,2936.8,2936.2,0.70367571]
[1764009077692,0.1988,2936.9,2936.2,0.70367571]
[1764009077879,0.487,2937.3,2936.3,0.75154328]
[1764009078074,0.31798383,2937.2,2936.3,0.75154328]
[1764009078273,0.31798383,2937.1,2936.3,0.75154328]
[1764009078613,3.89149805,2937.3,2936.3,0.75154328]
[1764009078815,0.31793273,2937.2,2936.4,6.81106116]
[1764009078996,4.6411626,2937.3,2936.4,6.81106116]
[1764009078997,0.31793273,2937.1,2936.5,0.225]
[1764009079314,4.6411626,2937.3,2936.5,0.225]
[1764009079507,0.31796711,2937.2,2936.5,0.225]
[1764009079673,0.002,2937.4,2936.5,1.00376044]
[1764009079877,0.31797341,2937.3,2936.5,1.00376044]
[1764009080106,0.002,2937.4,2936.5,1.00376044]
[1764009080676,0.002,2937.4,2936.7,13.62073072]
[1764009081200,0.002,2937.4,2936.8,0.224]
[1764009081400,0.002,2937.4,2936.8,1.0439548]
[1764009081571,0.002,2937.4,2936.7,3.40518268]
[1764009081572,0.48,2937.4,2936.9,0.224]
[1764009082384,0.002,2937.4,2936.9,0.224]
[1764009082585,0.002,2937.4,2936.6,6.81058787]
[1764009082890,0.48,2937.4,2936.8,3.40506673]
[1764009083203,0.48,2937.4,2936.8,6.81013346]
[1764009083398,0.48,2937.4,2936.8,3.40506673]
[1764009083602,0.48,2937.4,2936.9,0.224]
[1764009083824,0.002,2937.4,2936.9,0.224]
[1764009084311,0.48,2937.4,2936.9,0.224]
[1764009084621,0.48,2937.4,2936.8,3.40506673]
[1764009084825,0.48,2937.4,2937.0,0.224]
[1764009085206,0.38842955,2937.3,2937.0,0.224]
[1764009085505,0.48,2937.4,2937.0,0.224]
[1764009085891,0.002,2937.4,2937.0,0.224]
[1764009087024,0.002,2937.4,2937.1,3.40471894]
[1764009087326,0.48,2937.4,2937.1,3.40471894]
[1764009088809,0.002,2937.4,2937.1,3.40471894]
[1764009089123,0.002,2937.4,2937.1,6.80943788]
[1764009089423,0.002,2937.4,2937.1,3.40471894]
[1764009090001,0.48,2937.4,2937.1,3.40471894]
[1764009090724,0.002,2937.4,2937.1,6.80943788]
[1764009091225,0.002,2937.4,2937.2,3.86]
[1764009091424,0.48,2937.4,2937.3,0.224]
[1764009091643,0.002,2937.4,2937.3,0.224]
[1764009093134,0.002,2937.4,2937.3,3.62848711]
[1764009093429,0.002,2937.4,2937.3,7.48848711]
[1764009093735,0.002,2937.4,2937.3,4.084]
[1764009094189,0.002,2937.4,2937.3,7.48848711]
[1764009094393,0.002,2937.4,2937.3,4.084]
[1764009094820,0.002,2937.4,2937.3,7.48848711]
[1764009095025,0.002,2937.4,2937.3,4.084]
[1764009095406,0.002,2937.4,2937.3,7.48848711]
[1764009096007,0.002,2937.4,2937.3,7.48748711]
[1764009097417,0.002,2937.4,2937.3,4.71669495]
[1764009099401,0.002,2937.4,2937.3,5.84779306]
[1764009101497,0.002,2937.7,2937.3,5.84779306]
[1764009101498,0.002,2937.7,2937.6,4.53523754]
[1764009101810,0.002,2937.7,2937.6,4.63523754]
[1764009102210,0.478,2939.5,2937.7,1.13109811]
[1764009102437,0.478,2939.4,2937.9,1.13109811]
[1764009102938,0.478,2939.4,2938.1,0.405504]
[1764009103123,0.478,2939.4,2937.8,12.8073276]
[1764009103124,0.478,2939.4,2938.2,0.223]
[1764009103501,0.478,2939.4,2938.3,10.20998535]
[1764009103832,0.478,2939.4,2938.4,1.76889265]
[1764009104134,0.478,2939.6,2938.4,1.76889265]
[1764009104563,0.478,2939.6,2938.5,0.223]
[1764009105220,0.478,2939.6,2938.4,1.76889265]
[1764009105422,0.478,2939.6,2938.5,0.223]
[1764009105657,1.20612656,2939.6,2938.6,0.19918927]
[1764009106045,0.478,2939.5,2938.7,6.80573042]
[1764009106857,0.478,2939.5,2938.7,3.40286521]
[1764009107056,0.478,2939.5,2938.8,0.223]
[1764009107456,0.478,2939.5,2938.9,0.223]
[1764009107749,0.478,2939.5,2939.0,0.223]
[1764009107937,3.87996697,2939.5,2939.0,0.223]
[1764009108367,0.4812,2939.1,2939.0,0.223]
[1764009108561,0.4812,2939.1,2939.0,3.62551786]
[1764009108773,0.4876,2939.5,2939.0,3.98807655]
[1764009108939,0.4812,2939.1,2938.7,3.40282387]
[1764009109142,0.4812,2939.1,2938.8,0.222]
[1764009110171,0.4876,2939.3,2938.8,0.222]
[1764009110172,0.4967,2939.6,2938.9,3.40263363]
[1764009110327,0.4967,2939.6,2938.9,6.80526726]
[1764009110729,0.002,2939.5,2938.9,6.80526726]
[1764009111241,0.4967,2939.4,2938.9,6.80526726]
[1764009111965,0.4967,2939.4,2938.9,3.40263363]
[1764009112151,0.4967,2939.4,2939.0,0.222]
[1764009112353,0.002,2939.5,2939.0,0.92472673]
[1764009112867,0.4987,2939.5,2939.0,0.70272673]
[1764009113033,0.4987,2939.5,2939.1,0.222]
[1764009113469,0.4987,2939.5,2939.2,0.222]
[1764009114036,0.4987,2939.5,2939.3,0.222]
[1764009114235,0.4987,2939.5,2939.2,0.222]
[1764009114637,0.4962,2939.3,2939.2,0.222]
[1764009115338,0.4962,2939.3,2939.1,0.222]
[1764009116265,0.4962,2939.3,2939.0,3.40245756]
[1764009116483,0.4962,2939.1,2938.9,0.222]
[1764009117081,0.4962,2939.1,2938.7,6.80573042]
[1764009117286,0.4962,2939.1,2939.0,0.222]
[1764009118055,0.9929,2939.1,2939.0,0.222]
[1764009118560,0.4962,2939.1,2939.0,0.222]
[1764009118748,0.4967,2939.4,2938.7,7.50617506]
[1764009118955,0.4967,2939.4,2938.8,0.222]
[1764009119142,0.4967,2939.4,2938.8,1.01473643]
[1764009119878,0.4967,2939.4,2938.8,0.79273643]
[1764009120086,0.4967,2939.4,2938.9,0.222]
[1764009120861,0.4967,2939.4,2938.9,3.62457617]
[1764009121058,0.002,2939.5,2938.9,10.42984343]
[1764009121265,0.002,2939.5,2939.0,1.04298434]
[1764009121904,0.002,2939.5,2939.0,1.76857845]
[1764009122220,0.002,2939.5,2939.3,0.405504]
[1764009122365,0.002,2939.9,2939.5,0.405504]
[1764009122704,0.002,2939.9,2939.6,1.13109811]
[1764009122860,0.002,2940.2,2940.0,1.13109811]
[1764009123064,0.002,2940.2,2940.1,0.222]
[1764009123499,0.002,2940.2,2940.0,0.72559411]
[1764009123713,0.002,2940.2,2940.1,0.222]
[1764009125005,0.002,2940.2,2940.1,4.34883896]
[1764009125307,0.002,2940.2,2940.1,6.2358664]
[1764009125515,0.002,2940.6,2940.2,1.23109811]
[1764009125924,0.002,2940.6,2940.3,0.222]
[1764009126070,0.002,2940.6,2940.4,0.405504]
[1764009126836,0.002,2940.6,2940.4,0.347394]
[1764009127315,0.002,2940.9,2940.5,0.82559411]
[1764009127622,0.002,2940.9,2940.8,0.1]
[1764009127923,0.002,2940.9,2940.8,0.321]
[1764009128301,0.002,2940.9,2940.8,0.221]
[1764009128821,0.002,2940.9,2940.8,0.626504]
[1764009129421,0.002,2940.9,2940.8,4.75253336]
[1764009129619,0.002,2940.9,2940.8,5.72202168]
[1764009130649,0.002,2941.2,2940.9,1.13109811]
[1764009130921,0.002,2941.2,2941.1,0.405504]
[1764009131106,0.002,2941.2,2941.1,0.401504]
[1764009131304,0.002,2941.2,2941.1,4.52718651]
[1764009131500,0.002,2941.2,2941.1,5.40248467]
[1764009131807,0.002,2941.2,2941.1,5.62348467]
[1764009132225,0.002,2942.2,2941.1,5.62348467]
[1764009132226,0.002,2942.2,2941.4,0.1]
[1764009132385,0.002,2942.2,2941.7,0.82559411]
[1764009132586,0.002,2942.2,2941.8,0.78906324]
[1764009132805,0.002,2942.2,2942.0,0.1]
[1764009133002,0.002,2942.2,2942.1,1.13109811]
[1764009133354,0.002,2942.2,2942.1,4.75103084]
[1764009134290,0.4982,2942.2,2941.1,0.87529816]
[1764009134505,0.4982,2942.2,2939.8,0.001]
[1764009134506,0.4962,2942.1,2940.9,10.20095889]
[1764009134706,0.4962,2942.1,2941.0,0.94659411]
[1764009134948,0.9929,2942.1,2941.0,0.94659411]
[1764009135162,0.4962,2942.1,2941.3,0.72559411]
[1764009135450,0.4962,2942.1,2941.5,10.19887812]
[1764009135746,0.002,2942.2,2941.6,0.72559411]
[1764009136256,0.4987,2942.2,2941.7,0.221]
[1764009136458,0.4987,2942.2,2941.6,0.72559411]
[1764009136660,0.002,2942.2,2941.8,0.221]
[1764009137456,0.002,2942.2,2942.0,0.72559411]
[1764009137906,0.002,2942.2,2942.0,0.72159411]
[1764009139305,0.002,2942.2,2942.1,11.19047499]
[1764009139509,0.002,2942.2,2942.1,12.64942664]
[1764009139772,0.002,2942.5,2942.1,22.3086331]
[1764009139942,0.002,2942.5,2942.3,0.405504]
[1764009140139,0.002,2942.5,2942.4,0.1]
[1764009140464,0.002,2942.8,2942.7,0.505504]
[1764009140661,0.002,2942.8,2942.7,8.51713637]
[1764009140957,0.002,2942.8,2942.7,9.36885001]
[1764009141259,0.1852,2944.0,2942.7,10.05917933]
[1764009141465,0.002,2944.2,2943.2,1.13109811]
[1764009141613,0.002,2944.2,2943.3,0.221]
[1764009141813,0.002,2944.2,2943.3,0.321]
[1764009143028,0.002,2944.2,2943.6,0.72559411]
[1764009143221,0.002,2944.2,2943.9,7.06503826]
[1764009143437,0.002,2944.2,2944.1,4.12221786]
[1764009145151,0.002,2944.2,2944.1,4.33921786]
[1764009145971,0.002,2944.2,2944.1,4.11821786]
[1764009146173,0.002,2944.2,2944.1,4.33921786]
[1764009146331,0.002,2944.2,2944.1,5.11281344]
[1764009146539,0.002,2944.2,2944.1,5.51831744]
[1764009146938,0.002,2944.2,2944.1,5.61831744]
[1764009147172,0.002,2944.7,2944.1,5.39731744]
[1764009147375,0.002,2944.7,2944.6,0.405504]
[1764009147542,0.002,2944.7,2944.2,0.72559411]
[1764009147742,0.002,2944.7,2944.5,0.72559411]
[1764009147942,0.002,2944.7,2944.6,0.221]
[1764009148476,0.002,2944.7,2944.6,0.217]
[1764009149741,0.002,2944.7,2944.6,4.12164111]
[1764009149978,0.9814,2944.7,2944.6,4.34264111]
[1764009150751,0.002,2944.7,2944.6,4.74814511]
[1764009150953,0.002,2944.7,2944.6,4.52714511]
[1764009151158,0.002,2944.7,2944.6,4.74814511]
[1764009151470,0.002,2944.7,2944.6,5.35157528]
[1764009151655,0.002,2944.7,2944.6,5.57257528]
[1764009152059,0.002,2944.7,2944.6,5.56857528]
[1764009153288,0.002,2944.7,2944.6,5.90907528]
[1764009153489,0.002,2944.7,2944.6,4.11764111]
[1764009153690,0.4973,2944.7,2944.6,3.392047]
[1764009153890,0.9814,2944.7,2944.6,3.613047]
[1764009154190,0.9814,2944.7,2944.6,4.11764111]
[1764009154388,0.9814,2944.7,2944.6,3.392047]
[1764009154687,0.9814,2944.7,2944.6,3.613047]
[1764009154989,0.002,2944.7,2944.6,3.613047]
[1764009155168,0.002,2944.7,2944.6,4.31396736]
[1764009155364,0.002,2944.7,2944.6,4.30996736]
[1764009155569,0.9814,2944.7,2944.6,3.609047]
[1764009155771,0.4973,2944.7,2944.6,3.609047]
[1764009155959,0.9814,2944.7,2944.6,3.609047]
[1764009156284,0.9814,2944.7,2944.6,3.396047]
[1764009156457,0.9814,2944.7,2944.6,2.90324802]
[1764009158173,0.4973,2944.7,2944.6,0.221]
[1764009158692,0.002,2945.0,2944.6,0.221]
[1764009158871,0.4841,2945.6,2944.8,0.405504]
[1764009159964,0.4841,2945.6,2944.7,0.72559411]
[1764009159965,0.4841,2945.6,2944.9,0.221]
[1764009160365,0.4841,2945.6,2945.1,0.72559411]
[1764009160565,0.1801,2946.1,2945.1,5.46377467]
[1764009160775,0.1801,2946.1,2945.1,1.88277467]
[1764009160959,0.4841,2945.8,2945.1,1.47727067]
[1764009161160,0.4841,2945.8,2945.1,1.69827067]